Workbook

Sheet Řetězový zlomek po řádcích
A1: Aproximace čísla řetězovými zlomky
A2: Návod: Do oranžového políčka zadejte číslo, ve sloupcích B a G jsou koeficienty jeho vyjádření řetězovými zlomky, ve sloupcích D a I jsou postupné aproximace racionálním číslem.
A3: Autor: Martin Žáček, zacekm@fel.cvut.cz, http://fyzika.feld.cvut.cz/~zacek/
A4: Řetězový zlomek se zaokrouhlováním dolů | F4: Řetězový zlomek se zaokrouhlováním na nejbližší celé číslo
A5: číslo/jmenovatel | B5: celá část | C5: necelá část | D5: aproximace koneč-ným zlomkem | E5: Relativní chyba | F5: číslo/jmenovatel | G5: celá část | H5: necelá část | I5: aproximace koneč-ným zlomkem | J5: Relativní chyba
A6: =EXP(1) -> 2.718281828 | B6: =INT(A6) -> 2 | C6: =A6-B6 -> 0.7182818285 | D6: =B6 -> 2 | E6: =ABS(D6-$A$6)/$A$6 -> 0.2642411177 | F6: =A6 -> 2.718281828 | G6: =ROUND(F6,0) -> 3 | H6: =F6-G6 -> -0.2817181715 | I6: =G6 -> 3 | J6: =ABS(I6-$A$6)/$A$6 -> 0.1036383235
A7: =IF(C6<>0,1/C6,1E+307) -> 1.392211191 | B7: =INT(A7) -> 1 | C7: =A7-B7 -> 0.3922111912 | D7: =B6+1/B7 -> 3 | E7: =ABS(D7-$A$6)/$A$6 -> 0.1036383235 | F7: =IF(H6<>0,1/H6,1E+307) -> -3.549646778 | G7: =ROUND(F7,0) -> -4 | H7: =F7-G7 -> 0.4503532217 | I7: =G6+1/G7 -> 2.75 | J7: =ABS(I7-$A$6)/$A$6 -> 0.01166846322
A8: =IF(C7<>0,1/C7,1E+307) -> 2.549646778 | B8: =INT(A8) -> 2 | C8: =A8-B8 -> 0.5496467783 | D8: =B6+1/(B7+1/B8) -> 2.666666667 | E8: 0.01898815688 | F8: =IF(H7<>0,1/H7,1E+307) -> 2.220479286 | G8: 2 | H8: =F8-G8 -> 0.2204792856 | I8: =G6+1/(G7+1/G8) -> 2.714285714 | J8: 0.001470088249
A9: =IF(C8<>0,1/C8,1E+307) -> 1.819350244 | B9: 1 | C9: 0.8193502436 | D9: =B6+1/(B7+1/(B8+1/B9)) -> 2.75 | E9: 0.01166846322 | F9: =IF(H8<>0,1/H8,1E+307) -> 4.535573476 | G9: 5 | H9: -0.4644265239 | I9: =G6+1/(G7+1/(G8+1/G9)) -> 2.717948718 | J9: 0.0001225445084
A10: 1.220479286 | B10: 1 | C10: 0.2204792856 | D10: =B6+1/(B7+1/(B8+1/(B9+1/B10))) -> 2.714285714 | E10: 0.001470088249 | F10: -2.153193129 | G10: -2 | H10: -0.1531931285 | I10: =G6+1/(G7+1/(G8+1/(G9+1/G10))) -> 2.718309859 | J10: 1.031191674e-05
A11: 4.535573476 | B11: 4 | C11: 0.5355734761 | D11: =B6+1/(B7+1/(B8+1/(B9+1/(B10+1/B11)))) -> 2.71875 | E11: 0.0001722306849 | F11: -6.52770793 | G11: -7 | H11: 0.4722920698 | I11: =G6+1/(G7+1/(G8+1/(G9+1/(G10+1/G11)))) -> 2.718283582 | J11: 6.451246109e-07
A12: 1.867157439 | B12: 1 | C12: 0.867157439 | D12: =B6+1/(B7+1/(B8+1/(B9+1/(B10+1/(B11+1/B12))))) -> 2.717948718 | E12: 0.0001225445084 | F12: 2.117333879 | G12: 2 | H12: 0.1173338785 | I12: =G6+1/(G7+1/(G8+1/(G9+1/(G10+1/(G11+1/G12))))) -> 2.718281718 | J12: 4.053197342e-08
A13: 1.153193129 | B13: 1 | C13: 0.1531931285 | D13: =B6+1/(B7+1/(B8+1/(B9+1/(B10+1/(B11+1/(B12+1/B13)))))) -> 2.718309859 | E13: 1.031191674e-05 | F13: 8.522687671 | G13: 9 | H13: -0.4773123295 | I13: =G6+1/(G7+1/(G8+1/(G9+1/(G10+1/(G11+1/(G12+1/G13)))))) -> 2.718281823 | J13: 2.028890247e-09
A14: 6.52770793 | B14: 6 | C14: 0.5277079302 | D14: =B6+1/(B7+1/(B8+1/(B9+1/(B10+1/(B11+1/(B12+1/(B13+1/B14))))))) -> 2.71827957 | E14: 8.308802084e-07 | F14: -2.095064255 | G14: -2 | H14: -0.09506425515 | I14: =G6+1/(G7+1/(G8+1/(G9+1/(G10+1/(G11+1/(G12+1/(G13+1/G14))))))) -> 2.718281829 | J14: 1.017741058e-10
A15: 1.89498763 | B15: 1 | C15: 0.8949876301 | D15: =B6+1/(B7+1/(B8+1/(B9+1/(B10+1/(B11+1/(B12+1/(B13+1/(B14+1/B15)))))))) -> 2.718283582 | E15: 6.451246109e-07 | F15: -10.51920092 | G15: -11 | H15: 0.4807990823 | I15: =G6+1/(G7+1/(G8+1/(G9+1/(G10+1/(G11+1/(G12+1/(G13+1/(G14+1/G15)))))))) -> 2.718281828 | J15: 4.244876237e-12
A16: 1.117333879 | B16: 1 | C16: 0.1173338785 | D16: =B6+1/(B7+1/(B8+1/(B9+1/(B10+1/(B11+1/(B12+1/(B13+1/(B14+1/(B15+1/B16))))))))) -> 2.718281718 | E16: 4.053197342e-08 | F16: 2.079870859 | G16: 2 | H16: 0.07987085855 | I16: =G6+1/(G7+1/(G8+1/(G9+1/(G10+1/(G11+1/(G12+1/(G13+1/(G14+1/(G15+1/G16))))))))) -> 2.718281828 | J16: 1.7725785e-13
A17: 8.522687674 | B17: 8 | C17: 0.5226876735 | D17: =B6+1/(B7+1/(B8+1/(B9+1/(B10+1/(B11+1/(B12+1/(B13+1/(B14+1/(B15+1/(B16+1/B17)))))))))) -> 2.718281835 | E17: 2.482063256e-09 | F17: 12.52021098 | G17: 13 | H17: -0.4797890231 | I17: =G6+1/(G7+1/(G8+1/(G9+1/(G10+1/(G11+1/(G12+1/(G13+1/(G14+1/(G15+1/(G16+1/G17)))))))))) -> 2.718281828 | J17: 6.371480324e-15
A18: 1.913188412 | B18: 1 | C18: 0.9131884119 | D18: =B6+1/(B7+1/(B8+1/(B9+1/(B10+1/(B11+1/(B12+1/(B13+1/(B14+1/(B15+1/(B16+1/(B17+1/B18))))))))))) -> 2.718281823 | E18: 2.028890247e-09 | F18: -2.084249434 | G18: -2 | H18: -0.08424943444 | I18: =G6+1/(G7+1/(G8+1/(G9+1/(G10+1/(G11+1/(G12+1/(G13+1/(G14+1/(G15+1/(G16+1/(G17+1/G18))))))))))) -> 2.718281828 | J18: 3.267425807e-16
A19: 1.095064268 | B19: 1 | C19: 0.0950642682 | D19: =B6+1/(B7+1/(B8+1/(B9+1/(B10+1/(B11+1/(B12+1/(B13+1/(B14+1/(B15+1/(B16+1/(B17+1/(B18+1/B19)))))))))))) -> 2.718281829 | E19: 1.017741058e-10 | F19: -11.86951588 | G19: -12 | H19: 0.1304841202 | I19: =G6+1/(G7+1/(G8+1/(G9+1/(G10+1/(G11+1/(G12+1/(G13+1/(G14+1/(G15+1/(G16+1/(G17+1/(G18+1/G19)))))))))))) -> 2.718281828 | J19: 0
A20: 10.51919947 | B20: 10 | C20: 0.5191994737 | D20: =B6+1/(B7+1/(B8+1/(B9+1/(B10+1/(B11+1/(B12+1/(B13+1/(B14+1/(B15+1/(B16+1/(B17+1/(B18+1/(B19+1/B20))))))))))))) -> 2.718281828 | E20: 5.019256153e-12 | F20: 7.663767809 | G20: 8 | H20: -0.3362321914 | I20: =G6+1/(G7+1/(G8+1/(G9+1/(G10+1/(G11+1/(G12+1/(G13+1/(G14+1/(G15+1/(G16+1/(G17+1/(G18+1/(G19+1/G20))))))))))))) -> 2.718281828 | J20: 0
A21: 1.926042014 | B21: 1 | C21: =A21-B21 -> 0.9260420141 | F21: -2.974135213 | G21: -3 | H21: =F21-G21 -> 0.02586478733
A22: 1.079864612 | B22: 1 | C22: 0.07986461177 | F22: 38.66260284 | G22: 39 | H22: -0.3373971643
A23: 12.52119027 | B23: 12 | C23: 0.5211902725 | F23: -2.963866048 | G23: -3 | H23: 0.03613395214
A24: 1.918685081 | B24: 1 | C24: 0.9186850806 | F24: 27.6748028 | G24: 28 | H24: -0.3251971993
A25: 1.088512289 | B25: 1 | C25: 0.08851228902 | F25: -3.075057233 | G25: -3 | H25: -0.07505723317
